Cogmind - Beta 14 @@@ ROGUE MODE // 2024.10.27 @ 02:34:25 Player: Kate+Gabe4evr Result: Self-destructed Performance ------------- Evolutions (4) 2000 Regions Visited (5) 1000 Robots Destroyed (27) 135 Value Destroyed (1037) 1037 Prototype IDs (2) 40 Alien Tech Used (0) 0 Bonus (300) 300 TOTAL SCORE: 4512 Bonus ------- Registered with UFD 300 Cogmind --------- Core Integrity 296/850 Matter 66/300 Energy 100/100 System Corruption 0% Temperature Cool (9) Movement Core (50) Location -6/Factory Parts ------- > --- POWER (2) -------- (None) > --- PROPULSION (4) --- (None) > --- UTILITY (6) ------ Advanced Targeting Computer Armor Integrity Analyzer A0-MCA's Component Scanner > --- WEAPON (3) ------- (None) > --- INVENTORY (5) ---- Scrap Suit Large Storage Unit Peak State ------------ > --- POWER ------------ Angular Momentum Engine Light Angular Momentum Engine > --- PROPULSION ------- Improved Aluminum Leg Carbon-fiber Leg Carbon-fiber Leg > --- UTILITY ---------- Improved Heat Sink Small Storage Unit Advanced Targeting Computer Armor Integrity Analyzer Improved Reaction Control System A0-MCA's Component Scanner > --- WEAPON ----------- Coil Gun Heavy Flak Cannon Heavy Flak Cannon > --- INVENTORY -------- Light Ion Engine Scrap Suit Large Storage Unit Heavy Flak Cannon Rocket Launcher Plasma Cutter Flail [Rating: 60] Favorites ----------- Power Angular Momentum Engine Engine Angular Momentum Engine Propulsion Aluminum Leg Leg Aluminum Leg Utility Small Storage Unit Device Improved Heat Sink Storage Small Storage Unit Processor A0-MCA's Component Scanner Protection Gun Armor Weapon Assault Rifle Ballistic Gun Assault Rifle Ballistic Cannon Heavy Flak Cannon Launcher Rocket Launcher Special Weapon Plasma Cutter Impact Weapon Flail Build | -11 -10 -10 -9 -9 -6 ------- Run | Yrd Mat Sub Rec Scr Fac Slots Evolved 8 | . . . . . 8 Power 1 | . . . . . 1 Propulsion 2 | . . . . . 2 Utility 4 | . . . . . 4 Weapon 1 | . . . . . 1 Parts Attached 40 | 6 2 6 1 5 20 Power 5 | 1 1 . . 1 2 Engine 5 | 1 1 . . 1 2 Core . | . . . . . . Reactor . | . . . . . . Propulsion 7 | 2 . . 1 . 4 Treads . | . . . . . . Leg 7 | 2 . . 1 . 4 Wheel . | . . . . . . Hover . | . . . . . . Flight . | . . . . . . Utility 11 | 1 1 3 . 1 5 Device 4 | . 1 . . 1 2 Storage 2 | 1 . 1 . . . Processor 3 | . . . . . 3 Hackware . | . . . . . . Protection 2 | . . 2 . . . Artifact . | . . . . . . Weapon 17 | 2 . 3 . 3 9 Energy Gun . | . . . . . . Energy Cannon . | . . . . . . Ballistic Gun 10 | 2 . 3 . 3 2 Ballistic Cannon 4 | . . . . . 4 Launcher 1 | . . . . . 1 Special Weapon 1 | . . . . . 1 Impact Weapon 1 | . . . . . 1 Slashing Weapon . | . . . . . . Piercing Weapon . | . . . . . . Special Melee Weapon . | . . . . . . Unidentified Prototypes 1 | . . 1 . . . Parts Lost 21 | . . 1 . . 20 Power 3 | . . . . . 3 Propulsion 6 | . . . . . 6 Utility 3 | . . . . . 3 Weapon 9 | . . 1 . . 8 Highest Loss Streak 18 | . . 1 . . 18 To Critical Strikes . | . . . . . . Average Slot Usage (%) 87 | . 90 90 77 90 75 Engine 11 | . 14 13 11 11 10 Leg 22 | . 28 26 22 22 14 Device 3 | . 5 4 . . 11 Storage 10 | . 14 6 11 11 5 Processor 1 | . . . . . 14 Protection 6 | . . 8 11 10 . Ballistic Gun 27 | . 28 28 22 34 6 Ballistic Cannon 1 | . . . . . 10 Peak Build Rating 60 | 6 9 18 18 27 60 Average Rating 21 | 4 7 11 16 24 47 On Entrance 11 | . 6 9 16 18 18 Naked Turns . | . . . . . . Heaviest Build 54 | 12 15 29 18 32 54 Greatest Support 45 | 20 20 20 23 23 45 Greatest Overweight (x) 7 | 1 . 1 . 1 7 Average Overweight (x) . | . . . . . 1 Largest Inventory Capacity 8 | 8 8 8 8 8 8 Average Capacity 7 | 6 8 6 8 8 7 Most Carried 8 | 1 3 6 7 8 8 Average Carried 6 | . 2 4 5 7 7 Final Capacity 8 | 8 8 8 8 8 5 Final Carried 8 | 1 3 5 7 8 3 Class Distribution -------------------- 54% | Gunner 43% | Mutant Dominant Class ---------------- Mutant | -10/Materials Mutant | -10/Subcaves Mutant | -9/Recycling Gunner | -9/Scraptown Gunner | -6/Factory Resources | -11 -10 -10 -9 -9 -6 ----------- Run | Yrd Mat Sub Rec Scr Fac Matter Collected 1057 | 215 107 203 34 50 448 Remotely . | . . . . . . Salvage Created 880 | . 151 282 . . 447 Parts 47 | . 4 20 . . 23 Haulers Intercepted . | . . . . . . Recyclers Shooed 2 | . . . . . 2 Parts Field Recycled . | . . . . . . Retrieved Matter . | . . . . . . Parts Self-Destructed 17 | . . 17 . . . Prevented . | . . . . . . Kills | -11 -10 -10 -9 -9 -6 ------- Run | Yrd Mat Sub Rec Scr Fac Combat Hostiles Destroyed 23 | . 2 9 . . 12 Guns 13 | . 2 9 . . 2 Cannons 7 | . . . . . 7 AOE 3 | . . . . . 3 Classes Destroyed 9 | . 2 2 . . 5 Worker 1 | . . . . . 1 Tunneler 1 | . . . . . 1 Recycler 1 | . 1 . . . . Watcher 1 | . . . . . 1 Swarmer 4 | . . 4 . . . Grunt 12 | . 2 . . . 10 Duelist 1 | . . . . . 1 Programmer 1 | . . . . . 1 Subdweller 5 | . . 5 . . . Best Kill Streak 8 | . 3 4 . . 8 Combat Bots Only 5 | . 2 4 . . 5 Max Kills in Single Turn 3 | . 1 2 . . 3 Gunslinging 1 | . . 1 . . . Exploded 2 | . . . . . 2 Melee . | . . . . . . Uniques/NPCs Destroyed . | . . . . . . Combat | -11 -10 -10 -9 -9 -6 -------- Run | Yrd Mat Sub Rec Scr Fac Hostile Shots Fired 354 | . 7 105 . . 242 Missed 126 | . 2 41 . . 83 Damage Taken 3202 | . 82 668 . . 2452 Core 690 | . 18 118 . . 554 Absorbed by Shields . | . . . . . . Core Remaining (%) 72 | 100 . . . 45 . Volleys Fired 78 | . 7 30 . . 41 Largest 3 | . 2 3 . . 3 Hottest 136 | . 40 75 . . 136 Shots Fired 178 | . 14 67 . . 97 Gun 112 | . 14 67 . . 31 Cannon 64 | . . . . . 64 Launcher 1 | . . . . . 1 Special 1 | . . . . . 1 Kinetic 176 | . 14 67 . . 95 Thermal 1 | . . . . . 1 Explosive 1 | . . . . . 1 Electromagnetic . | . . . . . . Robot Hit Streak 11 | . 6 11 . . 7 Robot Miss Streak 7 | . 1 4 . . 7 Penetration Max . | . . . . . . Secondary Targets 2 | . . 2 . . . Max Gunslinging Chain 1 | . . 1 . . . Shots Hit Robots 121 | . 11 36 . . 74 Core Hits 89 | . 6 14 . . 69 Critical Kills 1 | . . . . . 1 Critical Parts Destroyed 1 | . . . . . 1 Critical Strikes 2 | . . . . . 2 Destroy 2 | . . . . . 2 Melee Attacks 2 | . . . . . 2 Impact 2 | . . . . . 2 Slashing . | . . . . . . Piercing . | . . . . . . Sneak Attacks . | . . . . . . Combat Hostiles . | . . . . . . Follow-up Attacks . | . . . . . . Damage Inflicted 3238 | . 146 547 . . 2545 Guns 982 | . 144 547 . . 291 Cannons 1158 | . . . . . 1158 Explosions 1034 | . . . . . 1034 Melee 23 | . . . . . 23 Ramming 31 | . 2 . . . 29 Kinetic 2140 | . 144 547 . . 1449 Thermal 580 | . . . . . 580 Explosive 464 | . . . . . 464 Electromagnetic . | . . . . . . Impact 23 | . . . . . 23 Slashing . | . . . . . . Piercing . | . . . . . . Highest Corruption . | . . . . . . Average Corruption . | . . . . . . Corruption Purged . | . . . . . . Corruption Blocked . | . . . . . . Overload Shots . | . . . . . . Overflow Damage 128 | . . . . . 128 Projectiles 6 | . . . . . 6 Explosions 122 | . . . . . 122 Melee . | . . . . . . Knockbacks 39 | . . . . . 39 Impact 1 | . . . . . 1 Kinetic 38 | . . . . . 38 Secondary . | . . . . . . Self-Inflicted Damage 27 | . . . . . 27 Shots 1 | . . . . . 1 Rammed . | . . . . . . Targets Rammed 5 | . 1 . . . 4 Kicked 5 | . 1 . . . 4 Crushed . | . . . . . . Highest Temperature 153 | . 2 9 . . 153 Average Temperature 41 | . 2 5 . . 44 Received Heat Transfer 1293 | . 45 345 . . 903 Siege Activations . | . . . . . . Robots Corrupted . | . . . . . . Combat Hostiles . | . . . . . . Parts Fried . | . . . . . . Impact Corruptions . | . . . . . . Robots Melted . | . . . . . . Combat Hostiles . | . . . . . . Parts Melted 1 | . . 1 . . . Heat Transferred 387 | . . . . . 387 Parts Sabotaged . | . . . . . . Parts Stolen . | . . . . . . Parts Stripped . | . . . . . . Power Chain Reactions . | . . . . . . Alert | -11 -10 -10 -9 -9 -6 ------- Run | Yrd Mat Sub Rec Scr Fac Peak Influence 315 | . 55 . 48 . 315 Initial 48 | . . . 48 . . Average 41 | . 13 . 48 . 82 Maximum Alert Level 1 | . . . . . 1 Low Security (%) 92 | 100 100 . 100 . 78 Level 1 7 | . . . . . 21 Level 2 . | . . . . . . Level 3 . | . . . . . . Level 4 . | . . . . . . Level 5 . | . . . . . . High Security . | . . . . . . Max Security . | . . . . . . Squads Dispatched 6 | . . . . . 6 Investigation 1 | . . . . . 1 Extermination 1 | . . . . . 1 Reinforcement 2 | . . . . . 2 Assault . | . . . . . . Garrison 2 | . . . . . 2 Intercept . | . . . . . . Searches Triggered . | . . . . . . Construction Impeded 1 | . . . . . 1 Haulers Reinforced 1 | . . . . . 1 Active Scanning Responses . | . . . . . . Cargo Convoy Interrupts . | . . . . . . Stealth | -11 -10 -10 -9 -9 -6 --------- Run | Yrd Mat Sub Rec Scr Fac Distress Signals 3 | . . . . . 3 Communications Jammed . | . . . . . . Distress Signals . | . . . . . . Times Spotted 40 | . 5 12 . . 23 Peak Tracking Total 6 | . 2 6 . . 5 Tactical Retreats 3 | . . 1 . . 2 Traps | -11 -10 -10 -9 -9 -6 ------- Run | Yrd Mat Sub Rec Scr Fac Traps Triggered . | . . . . . . Indirectly . | . . . . . . Trap Hack Attempts . | . . . . . . Triggered . | . . . . . . Disarmed . | . . . . . . Reprogrammed . | . . . . . . Reused . | . . . . . . Traps Extracted . | . . . . . . Installed . | . . . . . . Triggered . | . . . . . . Machines | -11 -10 -10 -9 -9 -6 ---------- Run | Yrd Mat Sub Rec Scr Fac Machines Disabled 7 | . . 2 . . 5 Max in Single Turn 4 | . . 1 . . 4 Machines Repaired . | . . . . . . Machines Dismantled . | . . . . . . Machines Sabotaged . | . . . . . . Overloaded Fab Kills . | . . . . . . Hacking | -11 -10 -10 -9 -9 -6 --------- Run | Yrd Mat Sub Rec Scr Fac Machines Accessed 7 | . 2 . . 4 1 Terminals 2 | . 2 . . . . Fabricators . | . . . . . . Repair Stations . | . . . . . . Recycling Units 1 | . . . . . 1 Scanalyzers . | . . . . . . Garrison Access . | . . . . . . Total Hacks 26 | . 3 . . 20 3 Successful 21 | . 1 . . 20 . Failed 5 | . 2 . . . 3 Catastrophic . | . . . . . . Database Lockouts . | . . . . . . Manual 6 | . 3 . . . 3 Terminals 3 | . 3 . . . . Fabricators . | . . . . . . Repair Stations . | . . . . . . Recycling Units 3 | . . . . . 3 Scanalyzers . | . . . . . . Garrison Access . | . . . . . . Terminal Hacks 20 | . . . . 20 . Record 20 | . . . . 20 . Fabricator Hacks . | . . . . . . Repair Station Hacks . | . . . . . . Recycling Unit Hacks . | . . . . . . Scanalyzer . | . . . . . . Garrison Access Hacks . | . . . . . . Unauthorized Hacks 1 | . 1 . . . . Terminals 1 | . 1 . . . . Botnet 1 | . 1 . . . . Fabricators . | . . . . . . Repair Stations . | . . . . . . Recycling Units . | . . . . . . Scanalyzers . | . . . . . . Garrison Access . | . . . . . . Data Cores Recovered . | . . . . . . Used . | . . . . . . Hacking Detections 3 | . 2 . . . 1 Full Trace Events 1 | . . . . . 1 Feedback Events . | . . . . . . Feedback Blocked . | . . . . . . Robot Schematics Acquired . | . . . . . . Robots Built . | . . . . . . Authchips . | . . . . . . Time . | . . . . . . Total Robot Build Rating . | . . . . . . Part Schematics Acquired . | . . . . . . Parts Built . | . . . . . . Authchips . | . . . . . . Time . | . . . . . . Total Part Build Rating . | . . . . . . Parts Repaired . | . . . . . . Time . | . . . . . . Parts Recycled . | . . . . . . Recycled Matter . | . . . . . . Retrieved Matter . | . . . . . . Retrieved Components . | . . . . . . Parts Scanalyzed . | . . . . . . Part Schematics Acquired . | . . . . . . Parts Damaged . | . . . . . . Bothacking | -11 -10 -10 -9 -9 -6 ------------ Run | Yrd Mat Sub Rec Scr Fac Used RIF Installer . | . . . . . . Robots Hacked . | . . . . . . Non-combat . | . . . . . . Combat . | . . . . . . Robot Hacks Applied . | . . . . . . Relay Couplers Released . | . . . . . . Fabnet Peak Effective % . | . . . . . . Robots Rewired . | . . . . . . Allies Hacked . | . . . . . . Hacks Repelled . | . . . . . . Allies | -11 -10 -10 -9 -9 -6 -------- Run | Yrd Mat Sub Rec Scr Fac Total Allies . | . . . . . . Largest Group . | . . . . . . Highest-Rated Group . | . . . . . . Highest-Rated Ally . | . . . . . . Total Orders . | . . . . . . Ally Attacks . | . . . . . . Total Damage . | . . . . . . Kills . | . . . . . . Allies Corrupted . | . . . . . . Allies Melted . | . . . . . . Intel | -11 -10 -10 -9 -9 -6 ------- Run | Yrd Mat Sub Rec Scr Fac Robot Analysis Total . | . . . . . . Derelict Logs Recovered . | . . . . . . Drone Launches . | . . . . . . Drone Recoveries . | . . . . . . Exploration | -11 -10 -10 -9 -9 -6 ------------- Run | Yrd Mat Sub Rec Scr Fac Turns Passed 5460 | 59 1039 762 302 2561 737 Spaces Moved 2408 | 47 107 382 248 1361 263 Core 19 | 14 . . . . 5 Treads . | . . . . . . Legs 2389 | 33 107 382 248 1361 258 Wheels . | . . . . . . Hover . | . . . . . . Flight . | . . . . . . Fastest Speed 50 | 50 120 120 120 120 50 Average Speed 170 | 106 120 159 120 184 194 Slowest Speed 400 | 120 120 190 120 190 400 Overloaded Moves . | . . . . . . Propulsion Burnouts . | . . . . . . Robots Hopped . | . . . . . . Cave-ins Triggered . | . . . . . . Exploration Rate (%) 32 | 3 21 29 47 88 7 Regions Visited 5 Branch Regions 3 Pre-discovered Areas . | . . . . . . Known Exits Taken . | . . . . . . Unknown Exits Taken 5 | 1 1 1 1 1 . Scrap Searched 4 | . . . . 4 . Spaces Dug . | . . . . . . Terrain Destroyed 29 | . . . . . 29 Melee . | . . . . . . Projectile 1 | . . . . . 1 AOE 28 | . . . . . 28 Terrain Rammed . | . . . . . . Walls Destroyed . | . . . . . . Machines Disabled . | . . . . . . Actions | -11 -10 -10 -9 -9 -6 --------- Run | Yrd Mat Sub Rec Scr Fac Total 3598 | 53 1002 474 252 1414 403 Wait 1037 | . 885 46 3 37 66 Move 2404 | 46 107 381 247 1360 263 Hop . | . . . . . . Pick Up 15 | 1 1 5 1 5 2 Fast Attach 23 | 6 1 1 . 3 12 Attach 9 | . . 3 . . 6 Detach 3 | . . 1 . 1 1 Swap 8 | . 1 2 1 2 2 Drop 13 | . . 3 . 6 4 Fire 78 | . 7 30 . . 41 Melee 2 | . . . . . 2 Ram . | . . . . . . Kick 4 | . . . . . 4 Crush . | . . . . . . Escape Stasis . | . . . . . . Rewire . | . . . . . . Trap . | . . . . . . Miscellaneous 2 | . . 2 . . . Route ------- -11/Scrapyard -10/Materials -10/Subcaves -9/Recycling -9/Scraptown (discovered 2 exits: *Fac x2) -6/Factory History --------- Turn | Location | Event 13 | -11/Scrapyard | Discovered new exit (range 15) 60 | -11/Scrapyard | Entered Materials 308 | -10/Materials | Build established: Mutant 1080 | -10/Materials | Discovered new exit (range 5) 1099 | -10/Materials | Entered Subcaves 1110 | -10/Subcaves | A swath of the cavern ceiling suddenly collapsed 1685 | -10/Subcaves | Visited 4L-MR0's lab 1702 | -10/Subcaves | Found Prototype Protection 1702 | -10/Subcaves | Identified Gun Armor 1704 | -10/Subcaves | Attached Gun Armor, gained temporary slots: Weapon x2 1815 | -10/Subcaves | Discovered new exit (range 13) 1843 | -10/Subcaves | Core integrity fell below 50% 1861 | -10/Subcaves | Entered Recycling 2132 | -9/Recycling | Scanned before Scraplab entrance 2150 | -9/Recycling | Entered Scraplab 2160 | -9/Recycling | Discovered new exit (range 3) 2163 | -9/Recycling | Entered Scraptown 2532 | -9/Scraptown | Visited Cyclists 2593 | -9/Scraptown | Build established: Gunner 2665 | -9/Scraptown | Discovered new exit (range 13) 2965 | -9/Scraptown | Visited Shadow of the Wyrm 3006 | -9/Scraptown | Visited Comm Corps 3115 | -9/Scraptown | Visited UFD Registry 3139 | -9/Scraptown | Visited TADAMA 3174 | -9/Scraptown | Registered with UFD as "Rustplate" 3225 | -9/Scraptown | Visited SPCMW 3301 | -9/Scraptown | Entered Cyclist Reading Room 3341 | -9/Scraptown | Visited Assassins FH 3607 | -9/Scraptown | Visited A0-MCA Data Center 3618 | -9/Scraptown | Given a B rating by A0-MCA 3625 | -9/Scraptown | Found A0-MCA's Component Scanner 3671 | -9/Scraptown | Visited Curators Association 3703 | -9/Scraptown | Visited Research Penetration Think Tank 3931 | -9/Scraptown | Visited Chapter 10 3994 | -9/Scraptown | Visited Science Guys 4057 | -9/Scraptown | Visited DA-N13 Charitable Foundation 4064 | -9/Scraptown | Found DCF Scrap (27 items) 4231 | -9/Scraptown | Delivered Scrap Shield to a Scientist 4619 | -9/Scraptown | Found Scrap Suit 4709 | -9/Scraptown | Discovered new exit (range 5) 4724 | -9/Scraptown | Entered Factory 4724 | -6/Factory | Evolved 8 slots: Power x1, Propulsion x2, Utility x4, Weapon x1 5287 | -6/Factory | Garrison activated, responded to threat 5449 | -6/Factory | Core integrity fell below 50% 5461 | -6/Factory | Self-destructed Last Messages --------------- 05450_ K-01 Serf collects debris. 05451_ U-05 Engineer lays Concrete. 05451_ Acquired 60 matter. 05452_ U-05 Engineer lays Concrete. 05452_ Acquired Flak Gun. 05453_ U-05 Engineer lays Concrete. 05454_ Slug penetrates U-05 Engineer. 05454_ U-05 Engineer lays Concrete. 05455_ Adv. Heat Sink destroyed. 05456_ K-01 Serf collects debris. 05456_ U-05 Engineer builds a Wall. 05456_ U-05 Engineer lays Concrete. 05457_ Critical hit (Burn: +37). 05457_ U-05 Engineer lays Concrete. 05459_ K-01 Serf collects debris. 05460_ U-05 Engineer lays Concrete. 05460_ Flak Gun destroyed. 05460_ Penetrated by Slug. 05460_ Flail destroyed. 05461_ U-05 Engineer lays Concrete. Map ----- +----------------------------------------------------+ | ?????????????????????????????????????????????????? | | ?????????????????????????????????????????????????? | | ?????????????????????????????????????????????????? | | ?????????????????????????????????????????????????? | | ?????????????????????????????????????????????????? | | ?????????????????????????????????????????????????? | | ?????????????????????????????????????????????????? | | ?????????????????????????????????????????????????? | | ?????????????????????????????????????????????????? | | ?????????????????????????????????????????????????? | | ?????????????????????????????????????????????????? | | ?????????????????????????????????????????????????? | | ?????????????????????????????????????????????????? | | ?????????????????????????????????????????????????? | | ????" ??????????????????????????????????????????? | | ????" ??????""T?????????????????????????????????? | | ??? " ???# """"????????????????????????????????? | | ??? " ???# ????????????????????????????????? | | ??? " #### # ######??????????????????????????? | | ??? " ##############?????????????? | | ??? " # [ #?????????????? | | ??? " !=# """ #?????????????? | | ???? *=# Y" #?????????????? | | ??????? = # h """ #?????????????? | | ?????????# ![#u = #?????????????? | | ?????????# ! # u@ #?????????????? | | ?????????# *# uk= #?????????????? | | ?????????# ! #gg g #?????????????? | | ?????????# "" ""|=#!u #?????????????? | | ?????????# ""R"" + ###???????????? | | ?????????# """" *# = ! /R ????????? | | ?????????# # ####??????????? | | ########## ] ##############?????????????? | | ?????????????? | | #????????????? | | * """""" " "" #????????????? | | ** """""" """""" #????????????? | | ** """""" """""" #????????????? | | +####+#### """""" """""" #????????????? | | ?????????# !!! ##???????????? | | ?????????# !!! ???????????? | | ?????????# ! ! ?????????? | | ?????????# ??????????? | | ?????????# ???????? | | ?????????+ ??????? | | ?????????###+########### ^ ??????? | | ???????????????????????# ^ ####### | | ???????????????????????# """ """ """ """ | | ???????????????????????# """ """ """ """ | | ???????????????????????# """ """ """ """ | +----------------------------------------------------+ Best States ------------- Heat Dissipation 56 Energy Generation 31 Energy Capacity 350 Matter Stores 300 Matter Capacity 300 Sight Range 16 Terrain Scan Density 10 Armor Coverage 800 Evasion (%) 60 Targeting Accuracy 8 Armor Integrity Analysis 30 Item Schematics ----------------- None Robot Schematics ------------------ None Fabricated ------------ Nothing Alien Tech Used ----------------- None Achievements -------------- None Challenges ------------ None Game ------ Seed DroneDisruptorBallwheel Manual? 0 Play Time 00:35:27 Cumulative 49.4 hours Start 2024.10.27 @ 01:47:18 End 2024.10.27 @ 02:34:25 Sessions 1 Manual Loads 0 Difficulty Rogue Special Mode None Game No. 86 Rogue 86 Adventurer 0 Explorer 0 Win Type - Total 1 Types 1/0/0/0/0/0/0/0/0 Lore% 35 Gallery% 47 Achievement% 41 Wizard Run 0 Options --------- Layout 0 ASCII 0 Keyboard 1 Movement Numpad Keybinds 0 Fullscreen 2 Font 24/Terminus Map View 76x50 Zoom Use 0% Tactical HUD 1 Map Filters NONE Filters NONE Steam 1 RUN: 05746ca7-ce47-41df-9740-d9dd6f1ef522